bitfinex-derivatives/quotes_ETHF0:USTF0_20210403
["timestamp","ask_amount","ask_price","bid_price","bid_amount"]
[1617472030571,4.97625,2040.5,2040.4,5.09751758]
[1617472031380,4.97625,2040.5,2040.4,0.1436075]
[1617472031580,2.90695,2040.5,2040.4,0.1436075]
[1617472031780,2.90695,2040.5,2040.2,77.19572803]
[1617472032082,2.90695,2040.5,2040.3,7.50547123]
[1617472032281,2.90695,2040.5,2040.3,9.10607123]
[1617472032481,2.90695,2040.5,2040.4,3.05055019]
[1617472033285,2.90695,2040.5,2040.4,5.05055019]
[1617472033785,2.90695,2040.5,2040.4,7.50490441]
[1617472034183,2.90695,2040.5,2040.4,0.14360019]
[1617472035783,2.90695,2040.5,2040.4,8.66940426]
[1617472036084,10.0,2041.8,2040.4,4.33900019]
[1617472036285,10.0,2041.8,2041.1,79.0032]
[1617472036483,10.0,2041.8,2041.5,7.3868781]
[1617472036887,10.0,2041.8,2041.6,7.38659012]
[1617472037184,10.0,2041.8,2041.6,9.14029012]
[1617472038485,2.90695,2041.7,2041.6,9.14029012]
[1617472038686,2.90695,2041.7,2041.6,7.38659012]
[1617472038987,2.90695,2041.7,2041.2,10.81992289]
[1617472039388,2.90695,2041.7,2041.5,7.38636906]
[1617472039589,2.90695,2041.7,2041.3,0.14356025]
[1617472039590,2.90695,2041.7,2041.4,7.38677681]
[1617472039890,2.90695,2041.7,2041.5,7.38660337]
[1617472040289,2.90695,2041.7,2041.4,7.38658827]
[1617472041091,2.90695,2041.7,2041.5,7.38661945]
[1617472041789,2.90695,2041.7,2041.4,7.38683768]
[1617472042492,2.90695,2041.7,2041.5,7.38656345]
[1617472043192,2.90695,2041.7,2041.6,7.38653911]
[1617472043692,2.90695,2041.7,2041.5,7.38643643]
[1617472044193,2.90695,2041.7,2041.6,7.38625009]
[1617472044795,2.90695,2041.7,2041.6,0.14353635]
[1617472044993,2.90695,2041.7,2041.6,2.14353635]
[1617472046895,2.90695,2041.7,2041.6,10.52408779]
[1617472047094,10.0,2041.8,2041.7,70.2828]
[1617472048093,10.0,2041.8,2041.7,70.42628661]
[1617472048294,10.0,2041.8,2041.7,80.08483781]
[1617472048594,10.0,2041.8,2041.7,70.42628661]
[1617472048794,2.90695,2042.4,2041.7,70.42628661]
[1617472049096,2.90695,2042.4,2041.8,0.14348123]
[1617472049295,2.90695,2042.4,2042.2,10.51193155]
[1617472050393,2.90695,2042.4,2042.2,8.52203155]
[1617472050693,2.90695,2042.4,2042.3,2.90695]
[1617472051094,2.90695,2042.4,2042.2,8.52203155]
[1617472051393,2.90695,2042.4,2042.1,8.52235565]
[1617472051696,2.90695,2042.4,2042.0,8.52266976]
[1617472052098,2.90695,2042.4,2042.1,2.0]
[1617472052296,2.90695,2042.4,2042.0,8.52266976]
[1617472052596,2.90695,2042.1,2042.0,8.52266976]
[1617472052797,2.90695,2042.1,2041.8,8.52351888]
[1617472053197,2.90695,2042.1,2041.9,2.0]
[1617472054601,2.90695,2042.1,2042.0,2.90695]
[1617472054800,2.90695,2042.1,2042.0,4.90695]
[1617472055200,11.0,2042.3,2042.0,13.4297891]
[1617472055603,11.0,2042.3,2042.2,10.52188006]
[1617472056000,11.0,2042.3,2042.2,2.0]
[1617472062316,11.0,2042.3,2042.2,64.9737]
[1617472062619,11.0,2042.3,2042.2,73.48781793]
[1617472063418,11.0,2042.3,2042.2,75.67211793]
[1617472063918,11.0,2042.3,2042.2,67.158]
[1617472065619,10.1013,2042.3,2042.2,67.158]
[1617472066022,10.1013,2042.3,2042.2,64.9737]
[1617472066522,10.1013,2042.3,2042.2,74.62093805]
[1617472067324,10.1013,2042.3,2042.2,64.9737]
[1617472069426,10.1013,2042.3,2042.2,67.0295]
[1617472070128,10.1013,2042.3,2042.2,75.51702339]
[1617472070527,10.1013,2042.3,2042.2,64.9737]
[1617472070726,9.4913,2042.3,2042.2,64.9737]
[1617472071728,9.4913,2042.3,2042.2,67.4036]
[1617472071928,9.4913,2042.3,2042.2,75.88989032]
[1617472072328,9.4913,2042.3,2042.2,67.4036]
[1617472073628,9.4913,2042.3,2042.2,77.02055945]
[1617472074632,9.4913,2042.3,2042.2,67.4036]
[1617472075638,9.4913,2042.3,2042.2,77.02052429]
[1617472076337,8.2863,2042.3,2042.2,77.02052429]
[1617472076839,7.3744,2042.3,2042.2,77.02052429]
[1617472077039,7.1036,2042.3,2042.2,77.02052429]
[1617472077839,7.1036,2042.3,2042.2,67.4036]
[1617472079142,7.1036,2042.3,2042.2,64.9737]
[1617472079343,7.1036,2042.3,2042.2,74.59064961]
[1617472079641,7.1036,2042.3,2042.2,77.01814961]
[1617472079943,7.1036,2042.3,2042.2,67.4012]
[1617472080744,7.1036,2042.3,2042.2,75.86610529]
[1617472081247,7.1036,2042.3,2042.2,64.9737]
[1617472083746,9.292,2042.3,2042.2,2.0]
[1617472084348,9.292,2042.3,2042.2,8.20946841]
[1617472084747,12.19895,2042.3,2042.2,2.0]
[1617472085247,12.19895,2042.3,2042.2,7.08124464]
[1617472085449,12.19895,2042.3,2042.2,5.08124464]
[1617472085648,12.19895,2042.3,2042.1,5.07916258]
[1617472085847,12.19895,2042.3,2041.8,5.08150714]
[1617472086249,58.0119,2041.9,2041.6,5.08301605]
[1617472086547,58.0119,2041.9,2041.6,7.08301605]
[1617472086847,5.27595,2041.7,2041.6,7.08301605]
[1617472088348,5.27595,2041.7,2041.6,2.0]
[1617472089448,5.27595,2041.7,2041.6,7.07314714]
[1617472089648,5.27595,2041.7,2041.6,5.07314714]
[1617472091049,5.27595,2041.7,2041.5,7.0717461]
[1617472092351,2.90695,2041.7,2041.5,8.20188038]
[1617472092750,2.90695,2041.7,2041.6,8.20175615]
[1617472092951,2.90695,2041.7,2041.6,2.0]
[1617472093151,2.90695,2041.7,2041.4,2.90695]
[1617472093650,2.90695,2041.7,2041.6,6.19930912]
[1617472094553,2.90695,2041.7,2041.4,12.2290656]
[1617472095655,2.90695,2041.7,2041.4,4.90695]
[1617472096457,2.90695,2041.7,2041.6,7.34138859]
[1617472096654,2.90695,2041.7,2041.6,9.34138859]
[1617472096854,2.90695,2041.7,2041.6,2.0]
[1617472097555,7.1036,2042.3,2041.6,2.0]
[1617472098364,7.1036,2042.3,2042.2,7.3560783]
[1617472098764,7.1036,2042.3,2041.9,10.4873639]
[1617472098965,7.1036,2042.3,2042.2,2.90695]
[1617472099465,7.1036,2042.3,2042.1,2.29577305]
[1617472099767,9.2447,2042.3,2042.0,7.35675477]
[1617472100167,9.2447,2042.3,2041.3,8.48959088]
[1617472100168,9.2447,2042.3,2042.1,4.29419998]
[1617472100368,9.2447,2042.3,2042.1,5.09426158]
[1617472100968,2.90695,2042.2,2042.0,5.0945835]
[1617472101168,2.90695,2042.2,2041.9,5.09484717]
[1617472101570,2.90695,2042.2,2041.8,5.09490517]
[1617472102271,3.89445,2042.2,2041.8,5.09490517]
[1617472102771,2.90695,2042.2,2041.8,5.09490517]
[1617472102972,2.90695,2041.9,2041.8,5.09490517]
[1617472104885,2.90695,2041.9,2041.7,5.09524713]
[1617472105679,2.90695,2041.9,2041.6,5.09080934]
[1617472105977,2.90695,2041.9,2041.5,5.09083263]
[1617472106280,2.90695,2041.9,2041.6,5.09084101]
[1617472106578,2.90695,2041.9,2041.0,10.26038701]
[1617472106579,2.90695,2041.9,2041.7,5.09084068]
[1617472108181,2.90695,2041.9,2041.6,5.09109197]
[1617472108479,57.9557,2041.8,2041.5,0.00052784]
[1617472108778,57.9557,2041.8,2040.0,9.61733037]
[1617472108779,57.9557,2041.8,2040.5,7.35514052]
[1617472108978,5.17845,2040.6,2040.4,7.35581896]
[1617472109178,5.17845,2040.6,2040.5,0.14361467]
[1617472109579,5.17845,2040.6,2040.3,7.35615416]
[1617472109782,5.17845,2040.6,2039.7,7.35336046]
[1617472110184,5.17845,2040.6,2040.1,6.22235747]
[1617472110582,5.17845,2040.6,2039.9,6.22291403]
[1617472110785,5.17845,2040.6,2038.4,66.8117]
[1617472110786,5.17845,2040.6,2039.8,6.22322297]
[1617472110983,4.58385,2040.0,2039.8,6.22322297]
[1617472111183,4.58385,2040.0,2039.7,6.22329664]
[1617472111583,4.58385,2040.0,2039.6,6.22328693]
[1617472111984,4.58385,2040.0,2039.7,6.22334228]
[1617472112489,4.58385,2040.0,2039.2,7.35479364]
[1617472112490,4.58385,2040.0,2039.6,6.22342137]
[1617472112984,2.90695,2039.7,2039.6,6.22342137]
[1617472113787,78.9524,2041.8,2039.3,7.35525075]
[1617472113989,78.9524,2041.8,2039.9,65.3196]
[1617472114388,78.9524,2041.8,2040.2,6.22276772]
[1617472114987,2.90695,2040.3,2040.2,6.22276772]
[1617472115286,2.90695,2040.3,2039.4,11.39254235]
[1617472115287,2.90695,2040.3,2040.1,6.22318312]
[1617472115686,2.90695,2040.3,2040.0,6.22324234]
[1617472116088,2.90695,2040.3,2040.1,6.22317899]
[1617472116287,2.90695,2040.3,2040.0,6.22336432]
[1617472116687,2.90695,2040.3,2039.9,6.22374111]
[1617472117089,2.90695,2040.0,2039.6,6.22420082]
[1617472117289,5.00265,2040.0,2039.6,5.86620082]
[1617472117492,5.00265,2040.0,2039.0,7.35695653]
[1617472117889,5.00265,2040.0,2038.8,7.35737816]
[1617472118190,5.00265,2040.0,2038.6,7.35804025]
[1617472118690,5.00265,2040.0,2038.3,7.35827809]
[1617472118989,2.90695,2038.4,2038.2,7.35884502]
[1617472119290,4.98105,2038.4,2038.2,7.35884502]
[1617472119489,4.98105,2038.4,2037.8,7.359294]
[1617472119690,4.98105,2038.4,2038.3,5.09513767]
[1617472120089,4.98105,2038.4,2036.5,10.75640174]
[1617472120090,4.98105,2038.4,2038.2,5.09571497]
[1617472120489,4.98105,2038.4,2037.9,5.09603206]
[1617472120992,2.90695,2038.0,2037.9,5.09603206]
[1617472121190,2.90695,2038.0,2037.8,5.09679037]
[1617472121390,73.4073,2037.9,2037.8,5.09679037]
[1617472121589,73.4073,2037.9,2037.8,1.88659037]
[1617472121790,73.4073,2037.9,2036.0,13.63524053]
[1617472121791,73.4073,2037.9,2035.5,2.0]
[1617472122390,73.4073,2037.9,2035.5,9.30606076]
[1617472122590,71.4796,2037.9,2035.5,9.30606076]
[1617472122791,71.4796,2037.9,2035.7,7.30547817]
[1617472122992,71.4796,2037.9,2036.7,2.90695]
[1617472123994,72.4677,2037.9,2036.7,2.90695]
[1617472124395,71.4796,2037.9,2036.7,2.90695]
[1617472124994,73.5578,2037.9,2036.4,2.90695]
[1617472126999,73.5578,2037.9,2036.9,2.90695]
[1617472127401,71.4796,2037.9,2036.9,5.25215]
[1617472127702,66.8572,2039.2,2036.9,86.10385]
[1617472128101,66.8572,2039.2,2037.0,2.0]
[1617472129002,69.3815,2039.2,2036.9,86.10385]
[1617472129303,64.5423,2038.4,2036.3,6.1737791]
[1617472129501,67.9556,2038.4,2036.3,6.1737791]
[1617472129802,67.9556,2038.4,2035.7,13.651]
[1617472129803,67.9556,2038.4,2035.8,6.17443245]
[1617472130303,67.9556,2038.4,2035.7,13.651]
[1617472131103,66.9889,2038.4,2037.1,2.90695]
[1617472131305,2.4466,2038.4,2037.1,2.90695]
[1617472131702,71.782,2039.1,2037.1,2.90695]
[1617472132303,71.782,2039.1,2036.8,78.1691]
[1617472132503,2.5178,2039.2,2036.0,5.05245583]
[1617472132704,63.4055,2038.3,2035.8,5.05285482]
[1617472132904,63.4055,2038.3,2035.6,5.05310372]
[1617472133104,2.90695,2036.4,2036.1,2.90695]
[1617472133906,1.5339,2037.0,2036.1,2.90695]
[1617472135206,1.5339,2037.0,2035.4,2.0]
[1617472135207,1.5339,2037.0,2036.4,2.90695]
[1617472135906,63.4055,2038.3,2036.4,2.90695]
[1617472137309,2.90695,2036.5,2036.4,2.90695]
[1617472137509,4.69975,2036.5,2036.4,2.90695]
[1617472138710,81.8744,2036.2,2034.4,20.88934698]
[1617472139110,81.8744,2036.2,2035.8,2.90695]
[1617472139309,81.8744,2036.2,2034.4,15.8685]
[1617472141113,81.8744,2036.2,2035.4,2.90695]
[1617472141516,81.8744,2036.2,2034.4,15.8685]
[1617472143120,81.8744,2036.2,2034.9,2.90695]
[1617472143319,81.8744,2036.2,2034.9,4.90695]
[1617472145124,2.90695,2035.0,2034.9,2.0]
[1617472146527,2.90695,2035.0,2034.6,2.90695]
[1617472146528,2.90695,2035.0,2034.7,2.0]
[1617472147430,2.90695,2035.0,2034.6,2.90695]
[1617472149134,2.90695,2035.0,2034.9,2.90695]
[1617472151236,2.90695,2035.0,2034.9,4.90695]
[1617472151538,81.8744,2036.2,2034.9,4.90695]
[1617472152336,81.8744,2036.2,2034.9,2.90695]
[1617472152537,81.8744,2036.2,2033.7,76.8373]
[1617472152836,81.8744,2036.2,2033.7,2.0]
[1617472152837,80.2764,2035.4,2033.7,2.0]
[1617472153137,82.7316,2035.4,2033.7,2.0]
[1617472153336,82.7316,2035.4,2034.1,2.90695]
[1617472155345,2.90695,2034.2,2034.1,2.90695]
[1617472156446,80.2764,2035.4,2034.1,2.90695]
[1617472157349,0.9924,2036.1,2034.6,2.90695]
[1617472157549,0.9924,2036.1,2033.7,3.1869]
[1617472157550,63.2054,2035.2,2033.7,2.2094]
[1617472158352,63.2054,2035.2,2033.3,2.0]
[1617472159051,11.0,2035.0,2033.3,2.0]
[1617472159250,11.0,2035.0,2034.7,2.90695]
[1617472159452,11.0,2035.0,2034.7,4.79935]
[1617472160054,11.0,2035.0,2034.7,6.79935]
[1617472163759,11.0,2035.0,2034.7,4.90695]
[1617472164561,11.0,2035.0,2034.7,2.90695]
[1617472165461,2.90695,2034.8,2034.1,67.7974]
[1617472167264,2.90695,2034.3,2034.1,67.7974]
[1617472168364,2.90695,2034.3,2034.0,2.0]
[1617472168765,5.11175,2034.3,2034.0,2.0]
[1617472171065,5.11175,2034.3,2033.0,75.4151]
[1617472171265,5.11175,2034.3,2032.5,7.02547641]
[1617472171467,68.6014,2034.0,2033.4,2.90695]
[1617472172066,2.2048,2034.3,2033.4,2.90695]
[1617472172268,2.2048,2034.3,2033.4,76.56735]
[1617472172867,2.2048,2034.3,2033.4,2.90695]
[1617472173166,68.7134,2034.3,2033.4,2.90695]
[1617472173366,2.90695,2033.5,2033.4,2.90695]
[1617472174567,4.44405,2033.5,2032.5,2.0]
[1617472175068,4.44405,2033.5,2032.4,2.0]
[1617472175267,4.44405,2033.5,2032.6,0.14728227]
[1617472175468,68.7134,2034.3,2032.9,2.90695]
[1617472175669,68.7134,2034.3,2033.0,2.0]
[1617472177568,2.90695,2033.1,2033.0,2.0]
[1617472178873,66.5086,2034.3,2033.0,2.0]
[1617472179075,11.0,2035.0,2033.0,3.8845]
[1617472179276,11.0,2035.0,2033.3,78.6177]
[1617472179475,11.0,2035.0,2033.9,2.90695]
[1617472179676,11.0,2035.0,2033.9,3.7907]
[1617472181378,2.90695,2034.0,2033.9,3.7907]
[1617472182175,11.0,2035.0,2033.9,3.7907]
[1617472183477,11.0,2035.0,2034.2,2.0]
[1617472185380,2.90695,2034.3,2034.2,2.0]
[1617472188283,2.90695,2034.3,2033.4,2.0]
[1617472188685,56.0619,2034.2,2033.4,2.0]
[1617472188883,57.8739,2034.2,2033.4,2.0]
[1617472189384,2.90695,2033.5,2033.4,2.0]
[1617472191387,2.90695,2033.5,2033.1,2.0]
[1617472193388,2.90695,2033.2,2033.1,2.0]
[1617472197291,2.90695,2033.2,2033.0,10.0]
[1617472197891,78.84875,2033.2,2033.0,10.0]
[1617472199692,78.84875,2033.2,2033.1,5.09098821]
[1617472200095,78.84875,2033.2,2033.0,15.09104161]
[1617472200994,78.84875,2033.2,2033.0,10.0]
[1617472202296,78.84875,2033.2,2032.7,5.09167787]
[1617472203104,78.84875,2033.2,2032.4,5.0925298]
[1617472203503,2.90695,2032.5,2032.4,5.0925298]
[1617472203703,5.06885,2032.5,2032.4,5.0925298]
[1617472204004,5.06885,2032.5,2032.3,5.09257764]
[1617472204604,5.06885,2032.5,2032.3,6.22429206]
[1617472206105,5.06885,2032.5,2031.9,7.35598153]
[1617472206106,5.06885,2032.5,2031.9,5.07952168]
[1617472206405,5.06885,2032.5,2031.8,7.07953117]
[1617472207506,2.90695,2031.9,2031.8,7.07953117]
[1617472207706,4.72835,2031.9,2031.8,7.07953117]
[1617472208008,4.72835,2031.9,2031.8,5.07953117]
[1617472208808,4.72835,2031.9,2031.1,7.33716836]
[1617472208809,4.72835,2031.9,2031.7,5.0795781]
[1617472209006,4.72835,2031.9,2031.6,5.08000952]
[1617472209507,4.72835,2031.9,2031.1,6.20973787]
[1617472209508,2.90695,2031.4,2031.3,5.08069462]
[1617472209709,5.27205,2031.4,2031.1,5.08102602]
[1617472210709,5.27205,2031.4,2030.9,8.21010051]
[1617472210710,5.27205,2031.4,2031.2,5.08104541]
[1617472210909,2.90695,2031.4,2031.3,2.0]
[1617472211113,2.90695,2031.4,2031.3,7.08105762]
[1617472211413,59.6306,2032.5,2031.3,2.0]
[1617472211609,0.9741,2033.5,2031.8,2.0]
[1617472211909,73.4372,2033.8,2032.0,5.08981083]
[1617472212110,73.4372,2033.8,2032.2,5.08917599]
[1617472212309,73.4372,2033.8,2032.3,2.0]
[1617472212511,0.9708,2034.2,2032.3,2.0]
[1617472212512,0.9708,2034.2,2032.5,5.08866629]
[1617472212710,0.9708,2034.2,2032.6,2.0]
[1617472212911,0.9708,2034.2,2032.8,2.0]
[1617472213213,0.9708,2034.2,2032.8,7.08818308]
[1617472213510,2.90695,2032.9,2032.8,7.08818308]
[1617472214512,76.1465,2035.0,2032.8,7.08818308]
[1617472214513,76.1465,2035.0,2032.8,2.0]
[1617472214712,11.0,2035.0,2032.8,2.0]
[1617472214911,11.0,2035.0,2033.6,64.0983]
[1617472215210,11.0,2035.0,2033.7,2.0]
[1617472215611,2.90695,2034.0,2033.8,4.90695]
[1617472215811,11.0,2035.0,2033.8,4.90695]
[1617472216515,11.0,2035.0,2033.9,5.08577686]
[1617472216715,11.0,2035.0,2034.0,2.0]
[1617472216915,11.0,2035.0,2034.1,5.08520848]
[1617472217114,11.0,2035.0,2034.2,2.0]
[1617472217415,11.0,2035.0,2034.7,82.7422]
[1617472217616,11.0,2035.0,2034.8,4.90695]
[1617472218716,10.0288,2035.0,2034.9,6.22064461]
[1617472218916,10.0288,2035.0,2034.9,2.0]
[1617472219117,8.0988,2035.0,2034.9,2.0]
[1617472219315,0.985,2037.7,2034.9,2.0]
[1617472219515,0.9843,2037.7,2036.0,2.90695]
[1617472219716,0.9843,2037.7,2036.0,6.52575]
[1617472220416,0.9843,2037.7,2036.4,75.7877]
[1617472220715,0.9913,2038.0,2036.4,75.7877]
[1617472220916,0.9931,2038.6,2036.5,2.0]
[1617472221116,0.9931,2038.6,2036.5,3.5525]
[1617472221621,0.9931,2038.6,2036.5,6.45945]
[1617472221918,1.977,2038.6,2036.5,6.45945]
[1617472223118,1.977,2038.6,2036.5,3.5525]
[1617472223419,1.977,2038.6,2036.7,5.10355479]
[1617472223618,1.977,2038.6,2036.8,2.90695]
[1617472223819,1.977,2038.6,2036.9,2.0]
[1617472224122,55.0899,2038.9,2036.9,2.0]
[1617472224318,2.571,2039.2,2036.9,2.0]
[1617472224619,2.571,2039.2,2037.7,2.0]
[1617472225618,2.571,2039.2,2038.2,4.89845]
[1617472225819,80.3374,2040.4,2038.2,1.9915]
[1617472226219,2.571,2040.4,2038.2,1.9915]
[1617472226419,2.571,2040.4,2038.7,63.19]
[1617472227721,2.90695,2038.8,2038.7,63.19]
[1617472228721,2.90695,2038.8,2038.3,5.10047721]
[1617472229123,2.90695,2038.8,2038.0,5.1002044]
[1617472229524,2.90695,2038.8,2037.8,5.10067206]
[1617472229721,2.90695,2037.9,2037.8,5.10067206]
[1617472229922,2.90695,2037.9,2037.3,4.90695]
[1617472230626,2.90695,2037.9,2037.3,2.0]
[1617472230824,2.90695,2037.9,2037.0,5.08661307]
[1617472230825,2.90695,2037.9,2037.2,2.0]
[1617472231626,2.90695,2037.4,2037.2,2.0]
[1617472232826,1.6748,2038.6,2037.2,2.0]
[1617472233227,57.566,2039.6,2037.2,2.0]
[1617472233728,57.566,2039.6,2037.7,2.90695]
[1617472233928,30.0,2041.2,2037.7,2.90695]
[1617472234130,30.0,2041.2,2038.6,57.3102]
[1617472234329,0.14604791,2040.2,2038.6,57.3102]
[1617472235631,2.90695,2038.7,2038.6,57.3102]
[1617472235832,2.90695,2038.7,2037.6,75.5847]
[1617472236032,4.65875,2038.7,2037.6,75.5847]
[1617472236934,4.65875,2038.7,2037.6,77.5847]
[1617472237135,2.90695,2038.7,2037.6,77.5847]
[1617472237634,2.90695,2037.7,2037.6,77.5847]
[1617472238735,80.6895,2039.9,2037.6,77.5847]
[1617472238938,14.0803,2040.8,2037.6,77.5847]
[1617472238939,14.0803,2040.8,2037.6,4.0471]
[1617472239137,14.0803,2040.8,2038.8,77.9767]
[1617472239335,0.9941,2041.1,2038.8,80.2535]
[1617472239736,2.90695,2038.9,2038.8,80.2535]
[1617472241838,2.90695,2038.9,2038.8,85.16045]
[1617472243038,1.7668,2040.9,2038.8,85.16045]
[1617472243641,1.7668,2040.9,2039.1,2.90695]
[1617472243841,1.7668,2040.9,2038.8,79.9767]
[1617472244940,1.7668,2040.9,2038.8,77.9767]
[1617472245341,1.7668,2040.9,2037.2,2.0]
[1617472245542,59.6972,2040.3,2037.2,64.1654]
[1617472245741,4.43635,2037.3,2037.2,64.1654]
[1617472245943,4.43635,2037.3,2037.2,2.0]
[1617472246542,4.43635,2037.3,2036.6,58.0772]
[1617472246742,4.43635,2037.3,2036.6,56.0772]
[1617472247746,4.93985,2036.7,2036.6,56.0772]
[1617472247944,4.93985,2036.7,2036.0,2.90695]
[1617472248146,4.93985,2036.7,2035.2,5.06429369]
[1617472248346,4.93985,2036.7,2035.1,5.06435139]
[1617472248547,4.93985,2036.7,2036.5,78.1533]
[1617472248747,1.5294,2037.3,2036.5,78.1533]
[1617472249248,80.8319,2039.2,2036.6,2.0]
[1617472249951,80.8319,2039.2,2037.1,2.90695]
[1617472250549,16.0988,2038.9,2036.6,2.0]
[1617472251751,16.0988,2038.9,2037.1,2.90695]
[1617472252354,14.0,2038.9,2037.1,2.90695]
[1617472252854,14.0,2038.9,2037.7,73.3717]
[1617472253754,2.90695,2037.8,2037.7,73.3717]
[1617472254256,14.0,2038.9,2037.7,73.3717]
[1617472254755,14.0,2038.9,2037.7,75.3717]
[1617472254958,14.0,2038.9,2037.7,73.3717]
[1617472255258,14.0,2038.9,2037.8,2.0]
[1617472255756,14.0,2038.9,2038.2,2.90695]
[1617472255956,14.0,2038.9,2038.2,7.12985]
[1617472256858,14.0,2038.9,2038.2,5.12985]
[1617472257158,15.6776,2038.9,2037.7,75.3717]
[1617472257760,2.90695,2037.8,2037.7,75.3717]
[1617472257959,4.91755,2037.8,2037.7,2.0]
[1617472259060,15.6776,2038.9,2037.7,2.0]
[1617472259360,14.0,2038.9,2037.9,76.3654]
[1617472259561,14.0,2038.9,2038.0,2.0]
[1617472259861,14.0,2038.9,2038.3,2.90695]
[1617472261862,2.90695,2038.4,2038.3,2.90695]
[1617472262463,2.90695,2038.4,2038.0,2.0]
[1617472263663,2.90695,2038.4,2037.9,76.3654]
[1617472263966,4.52545,2038.0,2037.9,76.3654]
[1617472264162,4.52545,2038.0,2037.2,2.90695]
[1617472264863,4.52545,2038.0,2037.1,2.0]
[1617472265064,4.52545,2038.0,2037.0,58.645]
[1617472265864,2.90695,2037.1,2037.0,58.645]
[1617472266064,2.90695,2037.1,2037.0,60.645]
[1617472267165,2.0963,2038.7,2037.0,60.645]
[1617472267365,14.0,2038.9,2037.0,60.645]
[1617472267865,14.0,2038.9,2037.4,2.90695]
[1617472268167,14.0,2038.9,2037.5,2.0]
[1617472269967,2.90695,2037.6,2037.5,2.0]
[1617472270267,2.90695,2037.6,2037.0,58.645]
[1617472271267,2.90695,2037.6,2037.0,60.645]
[1617472271567,3.87635,2037.6,2037.0,60.645]
[1617472271768,2.90695,2037.6,2037.0,60.645]
[1617472272068,2.90695,2037.1,2037.0,63.55195]
[1617472272269,2.4974,2038.6,2037.0,63.55195]
[1617472273271,14.0,2038.9,2037.0,63.55195]
[1617472273272,13.0,2037.5,2037.0,63.55195]
[1617472273970,13.0,2037.5,2037.3,2.90695]
[1617472274370,13.0,2037.5,2037.3,4.90695]
[1617472275873,2.90695,2037.4,2037.3,4.90695]
[1617472276072,5.41975,2037.4,2037.3,4.90695]
[1617472280175,5.41975,2037.4,2036.0,2.0]
[1617472280979,5.41975,2037.4,2036.1,0.15095843]
[1617472281878,2.90695,2036.2,2035.7,3.05800678]
[1617472282176,4.89845,2036.2,2035.7,4.90695]
[1617472282478,4.89845,2036.2,2035.8,0.15106415]
[1617472282878,4.89845,2036.2,2035.9,63.1666]
[1617472283177,2.90695,2036.2,2036.0,2.15101895]
[1617472283377,2.90695,2036.2,2036.1,0.15101679]
[1617472283679,2.5128,2037.4,2036.1,0.15101679]
[1617472283883,13.0,2037.5,2036.1,0.15101679]
[1617472284183,13.0,2037.5,2036.4,2.0]
[1617472284685,13.0,2037.5,2036.5,0.15097919]
[1617472285387,13.0,2037.5,2036.4,2.0]
[1617472285587,15.1778,2037.5,2036.4,2.0]
[1617472286087,4.89785,2036.5,2035.9,63.1666]
[1617472286592,4.89785,2036.5,2036.0,0.151096]
[1617472287090,4.89785,2036.5,2035.9,63.1666]
[1617472287991,5.00975,2036.0,2035.9,63.1666]
[1617472288190,5.00975,2036.0,2035.2,2.90695]
[1617472288696,5.00975,2036.0,2035.0,64.8028]
[1617472289095,5.00975,2036.0,2035.0,65.7888]
[1617472289495,5.00975,2036.0,2035.0,64.8028]
[1617472289995,4.94565,2035.2,2035.0,64.8028]
[1617472290195,4.94565,2035.2,2034.8,5.03325257]
[1617472290396,4.94565,2035.2,2034.6,6.15175314]
[1617472290397,4.94565,2035.2,2034.6,5.03672435]
[1617472290795,4.94565,2035.2,2034.4,68.85439642]
[1617472290796,4.94565,2035.2,2034.5,7.0382141]
[1617472291095,4.94565,2035.2,2034.6,5.03605165]
[1617472292096,2.0387,2035.2,2034.6,5.03605165]
[1617472292596,2.0387,2035.2,2034.5,7.02621044]
[1617472292997,2.0387,2035.2,2034.5,2.0]
[1617472293197,2.0387,2035.2,2034.3,5.02680183]
[1617472293398,2.0387,2035.2,2034.1,6.14386891]
[1617472293399,57.2222,2035.2,2034.1,5.02934148]
[1617472293798,57.2222,2035.2,2033.9,5.03144588]
[1617472294000,2.90695,2034.0,2033.9,5.03144588]
[1617472294399,2.1028,2036.0,2033.9,7.03144588]
[1617472294704,72.4287,2036.1,2034.0,69.2036]
[1617472294899,71.4351,2036.1,2034.0,69.2036]
[1617472295101,71.4029,2037.4,2034.8,67.1733]
[1617472295403,71.4029,2037.4,2034.9,2.0]
[1617472295998,71.4029,2037.4,2035.5,2.90695]
[1617472296300,71.4029,2037.4,2036.0,5.03961201]
[1617472296501,71.4029,2037.4,2035.9,5.03940905]
[1617472296999,73.7584,2037.4,2035.9,5.03940905]
[1617472298000,2.90695,2036.0,2035.9,5.03940905]
[1617472298201,2.90695,2036.0,2035.8,5.02671149]
[1617472298702,2.90695,2036.0,2035.9,5.02615284]
[1617472299701,2.90695,2036.0,2035.8,5.00649981]
[1617472300403,2.90695,2036.0,2035.6,5.00206137]
[1617472300802,2.90695,2036.0,2035.4,5.00410271]
[1617472301903,2.90695,2036.0,2035.5,4.99825855]
[1617472302102,2.90695,2035.6,2035.5,4.99825855]
[1617472302302,2.90695,2035.6,2035.4,6.10890209]
[1617472303003,2.90695,2035.6,2035.5,6.10880847]
[1617472303406,2.90695,2035.6,2035.4,6.11345948]
[1617472304108,2.90695,2035.6,2035.4,5.00963599]
[1617472304905,2.90695,2035.6,2034.4,8.34939332]
[1617472304906,2.90695,2035.6,2035.3,5.01171519]
[1617472305105,2.90695,2035.6,2035.2,5.01870674]
[1617472306006,2.90695,2035.3,2035.2,5.01870674]